[Event "Live Chess"]
[Site "Chess.com"]
[Date "2023.05.20"]
[Round "-"]
[White "Inglaterra"]
[Black "birdseed45"]
[Result "0-1"]
[WhiteElo "2075"]
[BlackElo "1854"]
[TimeControl "300"]
[EndTime "10:43:53 PDT"]
[Termination "birdseed45 won by resignation"]

1. d4 {[%clk 0:04:57.3]} 1... Nf6 {[%clk 0:04:58.5]} 2. c4 {[%clk 0:04:55]} 2...
g6 {[%clk 0:04:57.9]} 3. Nc3 {[%clk 0:04:53.3]} 3... Bg7 {[%clk 0:04:57.1]} 4.
g3 {[%clk 0:04:52.7]} 4... d5 {[%clk 0:04:56.6]} 5. cxd5 {[%clk 0:04:47.5]} 5...
Nxd5 {[%clk 0:04:56.5]} 6. Bg2 {[%clk 0:04:46.6]} 6... Nxc3 {[%clk 0:04:55.3]}
7. bxc3 {[%clk 0:04:45]} 7... O-O {[%clk 0:04:55.2]} 8. Nf3 {[%clk 0:04:43.6]}
8... c6 {[%clk 0:04:54.3]} 9. O-O {[%clk 0:04:42.1]} 9... Nd7 {[%clk 0:04:52.7]}
10. e4 {[%clk 0:04:38.9]} 10... e5 {[%clk 0:04:51.5]} 11. Re1 {[%clk 0:04:36.2]}
11... exd4 {[%clk 0:04:41.8]} 12. cxd4 {[%clk 0:04:34.9]} 12... Nb6 {[%clk
0:04:41]} 13. Bb2 {[%clk 0:04:32.4]} 13... Bg4 {[%clk 0:04:39]} 14. h3 {[%clk
0:04:27.6]} 14... Bxf3 {[%clk 0:04:37.6]} 15. Bxf3 {[%clk 0:04:27.5]} 15... Nc4
{[%clk 0:04:36.2]} 16. Bc3 {[%clk 0:04:22.8]} 16... Qb6 {[%clk 0:04:33.5]} 17.
Qb3 {[%clk 0:04:14.6]} 17... Bxd4 {[%clk 0:04:23.3]} 18. Bxd4 {[%clk 0:04:03.2]}
18... Qxd4 {[%clk 0:04:22]} 19. Qxb7 {[%clk 0:03:51.5]} 19... Rab8 {[%clk
0:04:12.7]} 20. Qxc6 {[%clk 0:03:35.9]} 20... Rb2 {[%clk 0:04:10.7]} 21. Be2
{[%clk 0:03:15.6]} 21... Rxe2 {[%clk 0:04:06.4]} 22. Rxe2 {[%clk 0:03:08.4]}
22... Qxa1+ {[%clk 0:04:04.6]} 23. Kg2 {[%clk 0:03:07.5]} 23... Qd4 {[%clk
0:03:59.6]} 24. h4 {[%clk 0:02:58.3]} 24... Ne5 {[%clk 0:03:48]} 25. Qf6 {[%clk
0:02:46.5]} 25... Re8 {[%clk 0:03:40]} 26. h5 {[%clk 0:02:42]} 26... gxh5 {[%clk
0:03:30.9]} 27. f4 {[%clk 0:02:18.4]} 27... Qd3 {[%clk 0:03:16.5]} 28. Qg5+
{[%clk 0:01:57.1]} 28... Ng6 {[%clk 0:03:05.9]} 29. Qxh5 {[%clk 0:01:48.6]}
29... Rxe4 {[%clk 0:03:03.3]} 30. Rxe4 {[%clk 0:01:44.5]} 30... Qxe4+ {[%clk
0:03:01.1]} 31. Kh3 {[%clk 0:01:40.4]} 31... Qd3 {[%clk 0:02:41]} 32. Qg5 {[%clk
0:01:27.1]} 32... Qf1+ {[%clk 0:02:33.7]} 33. Kh2 {[%clk 0:01:24.7]} 33... Qf2+
{[%clk 0:02:27.4]} 34. Kh3 {[%clk 0:01:23.3]} 34... Qf1+ {[%clk 0:02:22.5]} 35.
Kh2 {[%clk 0:01:22.6]} 35... Qe2+ {[%clk 0:02:21.8]} 36. Kh3 {[%clk 0:01:21.3]}
36... Kf8 {[%clk 0:02:19.3]} 37. f5 {[%clk 0:01:15]} 37... Ne7 {[%clk
0:02:12.7]} 38. f6 {[%clk 0:01:08.2]} 38... Qe6+ {[%clk 0:02:06]} 39. Kh2 {[%clk
0:01:05.8]} 39... Nf5 {[%clk 0:01:55.1]} 40. g4 {[%clk 0:00:30.9]} 40... Qe2+
{[%clk 0:01:51.2]} 41. Kg1 {[%clk 0:00:26.5]} 41... Qe3+ {[%clk 0:01:44.9]} 0-1

[Event "Live Chess"]
[Site "Chess.com"]
[Date "2023.05.20"]
[Round "-"]
[White "Hussamalhaidar"]
[Black "kenn48"]
[Result "1-0"]
[WhiteElo "1008"]
[BlackElo "1206"]
[TimeControl "300"]
[EndTime "10:43:56 PDT"]
[Termination "Hussamalhaidar won on time"]

1. b3 {[%clk 0:04:40]} 1... e5 {[%clk 0:04:56.7]} 2. Bb2 {[%clk 0:04:36.5]} 2...
Nc6 {[%clk 0:04:55.3]} 3. e3 {[%clk 0:04:33.6]} 3... d5 {[%clk 0:04:53.4]} 4.
Bb5 {[%clk 0:04:30.7]} 4... Bd7 {[%clk 0:04:49.7]} 5. Bxc6 {[%clk 0:04:27.6]}
5... Bxc6 {[%clk 0:04:47.6]} 6. Bxe5 {[%clk 0:04:27]} 6... d4 {[%clk 0:04:40.8]}
7. Nf3 {[%clk 0:04:19.7]} 7... d3 {[%clk 0:04:31.2]} 8. O-O {[%clk 0:04:12.9]}
8... dxc2 {[%clk 0:04:25.1]} 9. Qxc2 {[%clk 0:04:07.7]} 9... Bxf3 {[%clk
0:04:22.3]} 10. gxf3 {[%clk 0:03:57.4]} 10... c6 {[%clk 0:04:20.2]} 11. Nc3
{[%clk 0:03:50]} 11... Qg5+ {[%clk 0:04:10.5]} 12. Bg3 {[%clk 0:03:43.7]} 12...
h5 {[%clk 0:04:08.5]} 13. h4 {[%clk 0:03:39.6]} 13... Qf6 {[%clk 0:03:47.9]} 14.
Qe4+ {[%clk 0:03:33.3]} 14... Be7 {[%clk 0:03:32]} 15. d4 {[%clk 0:03:19.6]}
15... Nh6 {[%clk 0:03:01.9]} 16. Be5 {[%clk 0:03:00.4]} 16... Qxh4 {[%clk
0:02:47.2]} 17. Qxh4 {[%clk 0:02:54.6]} 17... Bxh4 {[%clk 0:02:43.6]} 18. Bxg7
{[%clk 0:02:52.5]} 18... Rg8 {[%clk 0:02:41.1]} 19. Kh2 {[%clk 0:02:35.2]} 19...
Rxg7 {[%clk 0:02:37.9]} 20. Ne4 {[%clk 0:02:28.8]} 20... O-O-O {[%clk
0:02:25.9]} 21. Kh3 {[%clk 0:02:21.5]} 21... Be7 {[%clk 0:02:17.3]} 22. Rac1
{[%clk 0:02:12.1]} 22... Kb8 {[%clk 0:02:04]} 23. a4 {[%clk 0:02:08.7]} 23...
Rdg8 {[%clk 0:01:51.4]} 24. a5 {[%clk 0:01:53.5]} 24... f5 {[%clk 0:01:30.9]}
25. Nc3 {[%clk 0:01:37.5]} 25... b6 {[%clk 0:01:10.5]} 26. axb6 {[%clk
0:01:29.7]} 26... axb6 {[%clk 0:01:08.5]} 27. Na4 {[%clk 0:01:27.5]} 27... Kb7
{[%clk 0:01:05.9]} 28. b4 {[%clk 0:01:14.6]} 28... b5 {[%clk 0:00:58.4]} 29.
Nc5+ {[%clk 0:01:11.6]} 29... Kc8 {[%clk 0:00:45]} 30. Ne6 {[%clk 0:01:08.1]}
30... Rg6 {[%clk 0:00:33.1]} 31. Nf4 {[%clk 0:01:04.2]} 31... Rd6 {[%clk
0:00:17.5]} 32. Nxh5 {[%clk 0:00:58.5]} 32... Nf7 {[%clk 0:00:14.2]} 33. Nf4
{[%clk 0:00:51.6]} 33... Ng5+ {[%clk 0:00:10.1]} 34. Kg2 {[%clk 0:00:42]} 34...
Ne4+ {[%clk 0:00:07.1]} 35. Kh2 {[%clk 0:00:31.5]} 35... Rh6+ {[%clk 0:00:02.9]}
36. Nh3 {[%clk 0:00:29.5]} 1-0

[Event "Live Chess"]
[Site "Chess.com"]
[Date "2023.05.20"]
[Round "-"]
[White "Ferrarifan27"]
[Black "vinni3012"]
[Result "1-0"]
[WhiteElo "2089"]
[BlackElo "1852"]
[TimeControl "300"]
[EndTime "10:44:05 PDT"]
[Termination "Ferrarifan27 won by resignation"]

1. e4 {[%clk 0:04:57.1]} 1... c6 {[%clk 0:04:59.6]} 2. d4 {[%clk 0:04:55.7]}
2... d5 {[%clk 0:04:59.5]} 3. e5 {[%clk 0:04:54.5]} 3... Bf5 {[%clk 0:04:57.9]}
4. h4 {[%clk 0:04:52.7]} 4... h5 {[%clk 0:04:56.6]} 5. Bg5 {[%clk 0:04:50.2]}
5... Qb6 {[%clk 0:04:50.9]} 6. Bd3 {[%clk 0:04:47.4]} 6... Bxd3 {[%clk
0:04:43.6]} 7. Qxd3 {[%clk 0:04:47.3]} 7... Qxb2 {[%clk 0:04:33.8]} 8. e6 {[%clk
0:04:40.4]} 8... Nf6 {[%clk 0:03:30.9]} 9. exf7+ {[%clk 0:04:33.8]} 9... Kxf7
{[%clk 0:03:30.8]} 10. Nf3 {[%clk 0:04:30.9]} 10... Nbd7 {[%clk 0:03:27.9]} 11.
O-O {[%clk 0:04:28.3]} 11... e5 {[%clk 0:02:57.8]} 12. dxe5 {[%clk 0:04:26.1]}
12... Nxe5 {[%clk 0:02:57.1]} 13. Nxe5+ {[%clk 0:04:23]} 13... Qxe5 {[%clk
0:02:55]} 14. Nd2 {[%clk 0:04:20.5]} 14... Bd6 {[%clk 0:02:39.6]} 15. Nf3 {[%clk
0:04:18.2]} 15... Qe4 {[%clk 0:02:37.5]} 16. Qb3 {[%clk 0:04:14.7]} 16... b5
{[%clk 0:02:30.1]} 17. Rfe1 {[%clk 0:04:12.9]} 17... Qf5 {[%clk 0:02:24.5]} 18.
a4 {[%clk 0:04:01.7]} 18... a6 {[%clk 0:02:08.2]} 19. Nd4 {[%clk 0:03:57.3]}
19... Qd7 {[%clk 0:02:06.6]} 20. Bxf6 {[%clk 0:03:15.3]} 20... gxf6 {[%clk
0:01:59.2]} 21. axb5 {[%clk 0:03:14]} 21... axb5 {[%clk 0:01:56.3]} 22. Rxa8
{[%clk 0:03:12.4]} 22... Rxa8 {[%clk 0:01:56.1]} 23. Nxb5 {[%clk 0:03:11]} 23...
Be5 {[%clk 0:01:12.6]} 24. Nc3 {[%clk 0:02:35.7]} 24... Rb8 {[%clk 0:01:06.9]}
25. Qa3 {[%clk 0:02:34.2]} 25... Re8 {[%clk 0:00:48.6]} 26. Na4 {[%clk
0:02:26.1]} 26... Bh2+ {[%clk 0:00:44]} 27. Kf1 {[%clk 0:02:24]} 27... Rxe1+
{[%clk 0:00:27.6]} 28. Kxe1 {[%clk 0:02:23.9]} 28... Qe7+ {[%clk 0:00:27]} 29.
Qxe7+ {[%clk 0:02:21.9]} 29... Kxe7 {[%clk 0:00:26.9]} 30. g3 {[%clk 0:02:19.7]}
30... Kd6 {[%clk 0:00:19.8]} 31. Kf1 {[%clk 0:02:18.7]} 1-0

[Event "Live Chess"]
[Site "Chess.com"]
[Date "2023.05.20"]
[Round "-"]
[White "DenDenTie"]
[Black "bristolunichess"]
[Result "0-1"]
[WhiteElo "689"]
[BlackElo "1811"]
[TimeControl "300"]
[EndTime "10:44:06 PDT"]
[Termination "bristolunichess won on time"]

1. e4 {[%clk 0:04:55.4]} 1... e6 {[%clk 0:04:54.7]} 2. Nf3 {[%clk 0:04:53.5]}
2... d5 {[%clk 0:04:54]} 3. exd5 {[%clk 0:04:51.5]} 3... exd5 {[%clk 0:04:50.9]}
4. d4 {[%clk 0:04:51]} 4... Bd6 {[%clk 0:04:48.3]} 5. Bd3 {[%clk 0:04:47.7]}
5... Ne7 {[%clk 0:04:45.9]} 6. Nc3 {[%clk 0:04:45.4]} 6... c6 {[%clk 0:04:43.6]}
7. Bg5 {[%clk 0:04:42.8]} 7... O-O {[%clk 0:04:41.3]} 8. O-O {[%clk 0:04:40.4]}
8... h6 {[%clk 0:04:40.6]} 9. Bh4 {[%clk 0:04:38.5]} 9... Bg4 {[%clk 0:04:39.7]}
10. h3 {[%clk 0:04:07]} 10... Bh5 {[%clk 0:04:38.4]} 11. Be2 {[%clk 0:04:03.8]}
11... Bg6 {[%clk 0:04:28.2]} 12. Bd3 {[%clk 0:03:26.8]} 12... Bxd3 {[%clk
0:04:09]} 13. Qxd3 {[%clk 0:03:19.6]} 13... Nd7 {[%clk 0:04:06.6]} 14. Rfe1
{[%clk 0:02:58.1]} 14... Re8 {[%clk 0:04:03.1]} 15. Rad1 {[%clk 0:02:27.6]}
15... Qc7 {[%clk 0:03:58.1]} 16. Kf1 {[%clk 0:02:13.3]} 16... g5 {[%clk
0:03:38.1]} 17. Bg3 {[%clk 0:01:56.8]} 17... Bxg3 {[%clk 0:03:36.8]} 18. fxg3
{[%clk 0:01:54.9]} 18... Qxg3 {[%clk 0:03:35.7]} 19. Qe3 {[%clk 0:01:20.7]}
19... Nf5 {[%clk 0:02:59.4]} 20. Qxe8+ {[%clk 0:00:46.9]} 20... Rxe8 {[%clk
0:02:48.3]} 0-1

[Event "Live Chess"]
[Site "Chess.com"]
[Date "2023.05.20"]
[Round "-"]
[White "Pablo_dmp"]
[Black "ACx04"]
[Result "1-0"]
[WhiteElo "1871"]
[BlackElo "423"]
[TimeControl "300"]
[EndTime "10:44:10 PDT"]
[Termination "Pablo_dmp won by checkmate"]

1. e4 {[%clk 0:04:59.3]} 1... e5 {[%clk 0:04:58.8]} 2. Nc3 {[%clk 0:04:58.4]}
2... Nf6 {[%clk 0:04:51.7]} 3. f4 {[%clk 0:04:57.4]} 3... exf4 {[%clk
0:04:50.3]} 4. e5 {[%clk 0:04:57.3]} 4... Ng8 {[%clk 0:04:43.7]} 5. Nf3 {[%clk
0:04:55.6]} 5... Nc6 {[%clk 0:04:37.5]} 6. d4 {[%clk 0:04:52.3]} 6... d5 {[%clk
0:04:34.7]} 7. Bxf4 {[%clk 0:04:47.4]} 7... f5 {[%clk 0:04:27.6]} 8. Bb5 {[%clk
0:04:35.4]} 8... Bd7 {[%clk 0:04:24.1]} 9. O-O {[%clk 0:04:30.2]} 9... a6 {[%clk
0:04:21.4]} 10. Bd3 {[%clk 0:04:28.4]} 10... h6 {[%clk 0:04:13.6]} 11. Nxd5
{[%clk 0:04:27.4]} 11... g5 {[%clk 0:04:10.5]} 12. Bd2 {[%clk 0:04:22.2]} 12...
b5 {[%clk 0:04:08]} 13. Qe1 {[%clk 0:04:13.9]} 13... g4 {[%clk 0:04:02.4]} 14.
e6 {[%clk 0:04:02.5]} 14... Bc8 {[%clk 0:03:58.1]} 15. Nh4 {[%clk 0:03:46.3]}
15... Bxe6 {[%clk 0:03:53]} 16. Qxe6+ {[%clk 0:03:43]} 16... Nce7 {[%clk
0:03:45.9]} 17. Nf6+ {[%clk 0:03:37.3]} 17... Nxf6 {[%clk 0:03:43.3]} 18. Qxf6
{[%clk 0:03:37.2]} 18... Nd5 {[%clk 0:03:37.6]} 19. Qe5+ {[%clk 0:03:33.1]}
19... Be7 {[%clk 0:03:33.1]} 20. Nxf5 {[%clk 0:03:30.8]} 20... Qd7 {[%clk
0:03:21.8]} 21. Qxh8+ {[%clk 0:03:28.9]} 21... Kf7 {[%clk 0:03:16.9]} 22. Ng7+
{[%clk 0:03:21.4]} 22... Bf6 {[%clk 0:02:42]} 23. Qxh6 {[%clk 0:03:18.8]} 23...
Ke7 {[%clk 0:02:34.2]} 24. Nf5+ {[%clk 0:03:13.3]} 24... Qxf5 {[%clk 0:02:32.3]}
25. Bxf5 {[%clk 0:03:11.6]} 25... c6 {[%clk 0:02:25.9]} 26. Rae1+ {[%clk
0:03:11.5]} 26... Kf7 {[%clk 0:02:21.9]} 27. Be6+ {[%clk 0:03:09]} 27... Ke7
{[%clk 0:02:01]} 28. Bxd5+ {[%clk 0:03:08.9]} 28... Kd6 {[%clk 0:01:57.3]} 29.
Qxf6+ {[%clk 0:03:07.5]} 29... Kxd5 {[%clk 0:01:56]} 30. Qe6+ {[%clk 0:03:07]}
30... Kxd4 {[%clk 0:01:55]} 31. Rf4+ {[%clk 0:03:06.9]} 31... Kc5 {[%clk
0:01:41.7]} 32. Be3# {[%clk 0:03:06.8]} 1-0

[Event "Live Chess"]
[Site "Chess.com"]
[Date "2023.05.20"]
[Round "-"]
[White "JanMur7"]
[Black "friarnator"]
[Result "0-1"]
[WhiteElo "1947"]
[BlackElo "1977"]
[TimeControl "300"]
[EndTime "10:44:12 PDT"]
[Termination "friarnator won by checkmate"]

1. e4 {[%clk 0:04:58.2]} 1... Nf6 {[%clk 0:04:57.4]} 2. Nc3 {[%clk 0:04:56.9]}
2... d5 {[%clk 0:04:56.2]} 3. e5 {[%clk 0:04:55.9]} 3... d4 {[%clk 0:04:55.1]}
4. exf6 {[%clk 0:04:54.4]} 4... dxc3 {[%clk 0:04:55]} 5. fxg7 {[%clk 0:04:48.8]}
5... cxd2+ {[%clk 0:04:54.9]} 6. Qxd2 {[%clk 0:04:46.5]} 6... Qxd2+ {[%clk
0:04:54.1]} 7. Bxd2 {[%clk 0:04:45.9]} 7... Bxg7 {[%clk 0:04:54]} 8. O-O-O
{[%clk 0:04:45.1]} 8... O-O {[%clk 0:04:53.6]} 9. Kb1 {[%clk 0:04:43.1]} 9... a5
{[%clk 0:04:51.5]} 10. Bd3 {[%clk 0:04:41.7]} 10... a4 {[%clk 0:04:50.1]} 11. a3
{[%clk 0:04:40.9]} 11... Na6 {[%clk 0:04:46.9]} 12. Be3 {[%clk 0:04:35.8]} 12...
b6 {[%clk 0:04:41.6]} 13. Ne2 {[%clk 0:04:30.1]} 13... Bb7 {[%clk 0:04:40]} 14.
f3 {[%clk 0:04:29.2]} 14... c5 {[%clk 0:04:34.8]} 15. Ng3 {[%clk 0:04:23]} 15...
Nc7 {[%clk 0:04:28.5]} 16. Nf5 {[%clk 0:04:20.5]} 16... e6 {[%clk 0:04:27.2]}
17. Nxg7 {[%clk 0:04:11.2]} 17... Kxg7 {[%clk 0:04:27.1]} 18. Bf4 {[%clk
0:04:10.4]} 18... Nd5 {[%clk 0:04:25.2]} 19. Be5+ {[%clk 0:04:07.4]} 19... f6
{[%clk 0:04:24.3]} 20. Bd6 {[%clk 0:04:05.1]} 20... Rfd8 {[%clk 0:04:22.7]} 21.
Bg3 {[%clk 0:04:04.4]} 21... Bc6 {[%clk 0:04:17.3]} 22. Rhe1 {[%clk 0:04:02.8]}
22... Kf7 {[%clk 0:04:13.6]} 23. Bc4 {[%clk 0:04:01.4]} 23... b5 {[%clk
0:04:10.4]} 24. Bxd5 {[%clk 0:03:55.2]} 24... Bxd5 {[%clk 0:04:08.2]} 25. Bf2
{[%clk 0:03:52.6]} 25... Rdc8 {[%clk 0:04:04.1]} 26. Re3 {[%clk 0:03:46.7]}
26... b4 {[%clk 0:04:02.9]} 27. Rc1 {[%clk 0:03:30.4]} 27... b3 {[%clk
0:03:31.6]} 28. c4 {[%clk 0:03:20.8]} 28... Bb7 {[%clk 0:03:24.9]} 29. Rce1
{[%clk 0:03:18.8]} 29... Rc6 {[%clk 0:03:18]} 30. Rd3 {[%clk 0:03:16.8]} 30...
Ke7 {[%clk 0:03:15.3]} 31. Red1 {[%clk 0:03:15]} 31... Bc8 {[%clk 0:03:10.9]}
32. Rd8 {[%clk 0:03:12]} 32... Ra7 {[%clk 0:03:08.3]} 33. Bg3 {[%clk 0:03:05.2]}
33... Rd7 {[%clk 0:03:06.6]} 34. R8xd7+ {[%clk 0:03:01.3]} 34... Bxd7 {[%clk
0:03:05.3]} 35. Bf2 {[%clk 0:03:00.4]} 35... e5 {[%clk 0:03:02]} 36. Rd5 {[%clk
0:02:53.6]} 36... Be6 {[%clk 0:02:57.8]} 37. Rxc5 {[%clk 0:02:36.3]} 37... Rxc5
{[%clk 0:02:56.8]} 38. Bxc5+ {[%clk 0:02:36.2]} 38... Kd7 {[%clk 0:02:56]} 39.
Kc1 {[%clk 0:02:32.7]} 39... Bxc4 {[%clk 0:02:54.5]} 40. Kd2 {[%clk 0:02:30]}
40... Ke6 {[%clk 0:02:52.5]} 41. g3 {[%clk 0:02:26.8]} 41... Bd5 {[%clk
0:02:45.5]} 42. Ke3 {[%clk 0:02:24]} 42... Kf5 {[%clk 0:02:43]} 43. Be7 {[%clk
0:02:21]} 43... Bc6 {[%clk 0:02:39.9]} 44. h4 {[%clk 0:02:17.5]} 44... Ke6
{[%clk 0:02:38.7]} 45. Bd8 {[%clk 0:02:14]} 45... f5 {[%clk 0:02:38.6]} 46. Bc7
{[%clk 0:02:06]} 46... h5 {[%clk 0:02:37]} 47. Bb8 {[%clk 0:02:04.1]} 47... Kd5
{[%clk 0:02:31.1]} 48. Bc7 {[%clk 0:01:59.4]} 48... Bb5 {[%clk 0:02:14.4]} 49.
Bb8 {[%clk 0:01:54.4]} 49... Bf1 {[%clk 0:02:12]} 50. Ba7 {[%clk 0:01:51.8]}
50... Bg2 {[%clk 0:02:08.3]} 51. Kf2 {[%clk 0:01:47.6]} 51... Bh1 {[%clk
0:02:04.2]} 52. Ke3 {[%clk 0:01:35.5]} 52... Kc4 {[%clk 0:01:49.3]} 53. Bb8
{[%clk 0:01:28.9]} 53... e4 {[%clk 0:01:44.9]} 54. f4 {[%clk 0:01:22.2]} 54...
Bf3 {[%clk 0:01:42.3]} 55. Ba7 {[%clk 0:01:20.3]} 55... Bg4 {[%clk 0:01:42.2]}
56. Bd4 {[%clk 0:01:18.6]} 56... Bd1 {[%clk 0:01:39.3]} 57. Bc3 {[%clk
0:01:18.5]} 57... Bc2 {[%clk 0:01:38.8]} 58. Bb4 {[%clk 0:01:17.8]} 58... Bd1
{[%clk 0:01:34.6]} 59. Bf8 {[%clk 0:01:17.2]} 59... Bc2 {[%clk 0:01:34.5]} 60.
Bg7 {[%clk 0:01:17.1]} 60... Bd1 {[%clk 0:01:33.9]} 61. Bh8 {[%clk 0:01:17]}
61... Bc2 {[%clk 0:01:33.8]} 62. Bf6 {[%clk 0:01:16.9]} 62... Bd1 {[%clk
0:01:33.4]} 63. Bg5 {[%clk 0:01:16.8]} 63... Bc2 {[%clk 0:01:33.3]} 64. Bh6
{[%clk 0:01:16.1]} 64... Bd1 {[%clk 0:01:32.5]} 65. Bf8 {[%clk 0:01:14.6]} 65...
Bc2 {[%clk 0:01:32.4]} 66. Be7 {[%clk 0:01:14.5]} 66... Bd1 {[%clk 0:01:31.7]}
67. Bd8 {[%clk 0:01:14.4]} 67... Bc2 {[%clk 0:01:31.6]} 68. Bc7 {[%clk
0:01:14.3]} 68... Bd1 {[%clk 0:01:31.2]} 69. Bb8 {[%clk 0:01:14.2]} 69... Bc2
{[%clk 0:01:31.1]} 70. Ba7 {[%clk 0:01:14.1]} 70... Bd1 {[%clk 0:01:30.6]} 71.
Kd2 {[%clk 0:01:09.6]} 71... Bc2 {[%clk 0:01:30.5]} 72. Bb6 {[%clk 0:01:06]}
72... Bd3 {[%clk 0:01:29.1]} 73. Ba5 {[%clk 0:01:02.4]} 73... Bc2 {[%clk
0:01:29]} 74. Ke3 {[%clk 0:00:59.3]} 74... Bd3 {[%clk 0:01:27.5]} 75. Bc3 {[%clk
0:00:57.6]} 75... Kd5 {[%clk 0:01:26.5]} 76. Bh8 {[%clk 0:00:55.1]} 76... Ke6
{[%clk 0:01:26.4]} 77. Bg7 {[%clk 0:00:53.9]} 77... Kd5 {[%clk 0:01:24.8]} 78.
Be5 {[%clk 0:00:52.5]} 78... Bc2 {[%clk 0:01:23.9]} 79. Kd2 {[%clk 0:00:50.3]}
79... Bd3 {[%clk 0:01:23.8]} 80. Bb8 {[%clk 0:00:47.4]} 80... Bf1 {[%clk
0:01:18.7]} 81. Ba7 {[%clk 0:00:43.1]} 81... Bg2 {[%clk 0:01:17.6]} 82. Kc3
{[%clk 0:00:40.9]} 82... Bh3 {[%clk 0:01:17.5]} 83. Be3 {[%clk 0:00:30.9]} 83...
Bf1 {[%clk 0:01:00.9]} 84. Kb4 {[%clk 0:00:29.5]} 84... Ba6 {[%clk 0:00:55.8]}
85. Ka5 {[%clk 0:00:25]} 85... Kc4 {[%clk 0:00:55.3]} 86. Kxa6 {[%clk
0:00:22.5]} 86... Kd3 {[%clk 0:00:54.7]} 87. Bc5 {[%clk 0:00:19.4]} 87... e3
{[%clk 0:00:54.2]} 88. Kb5 {[%clk 0:00:18.4]} 88... e2 {[%clk 0:00:50.1]} 89.
Bb4 {[%clk 0:00:17.4]} 89... Kc2 {[%clk 0:00:48.5]} 90. Bc3 {[%clk 0:00:16.5]}
90... e1=Q {[%clk 0:00:38.1]} 91. Bxe1 {[%clk 0:00:15.1]} 91... Kxb2 {[%clk
0:00:38]} 92. Kxa4 {[%clk 0:00:14.4]} 92... Kc2 {[%clk 0:00:37.8]} 93. Bc3
{[%clk 0:00:11.2]} 93... Kxc3 {[%clk 0:00:36.6]} 94. Kb5 {[%clk 0:00:10.3]}
94... b2 {[%clk 0:00:36.1]} 95. a4 {[%clk 0:00:10.2]} 95... b1=Q+ {[%clk
0:00:36]} 96. Kc6 {[%clk 0:00:09.4]} 96... Qb4 {[%clk 0:00:33.3]} 97. Kd5 {[%clk
0:00:09.3]} 97... Qxa4 {[%clk 0:00:32.2]} 98. Ke6 {[%clk 0:00:09.2]} 98... Qe4+
{[%clk 0:00:30.4]} 99. Kf6 {[%clk 0:00:09.1]} 99... Kd4 {[%clk 0:00:29.2]} 100.
Kg5 {[%clk 0:00:09]} 100... Ke3 {[%clk 0:00:27.6]} 101. Kxh5 {[%clk 0:00:08.9]}
101... Kf3 {[%clk 0:00:27.5]} 102. Kg5 {[%clk 0:00:08.8]} 102... Kxg3 {[%clk
0:00:26.7]} 103. h5 {[%clk 0:00:08.7]} 103... Qxf4+ {[%clk 0:00:26.3]} 104. Kg6
{[%clk 0:00:07.9]} 104... Qg4+ {[%clk 0:00:26.1]} 105. Kh6 {[%clk 0:00:06.5]}
105... f4 {[%clk 0:00:25.2]} 106. Kh7 {[%clk 0:00:05.7]} 106... f3 {[%clk
0:00:25.1]} 107. h6 {[%clk 0:00:04.9]} 107... f2 {[%clk 0:00:24.6]} 108. Kh8
{[%clk 0:00:04.8]} 108... f1=Q {[%clk 0:00:23.9]} 109. h7 {[%clk 0:00:04.7]}
109... Qa1# {[%clk 0:00:22.2]} 0-1

[Event "Live Chess"]
[Site "Chess.com"]
[Date "2023.05.20"]
[Round "-"]
[White "Pandreq"]
[Black "MaximKris"]
[Result "0-1"]
[WhiteElo "1269"]
[BlackElo "1859"]
[TimeControl "300"]
[EndTime "10:44:14 PDT"]
[Termination "MaximKris won on time"]

1. d4 {[%clk 0:04:58.9]} 1... d5 {[%clk 0:04:59]} 2. c4 {[%clk 0:04:57.1]} 2...
e6 {[%clk 0:04:57.5]} 3. cxd5 {[%clk 0:04:55.9]} 3... exd5 {[%clk 0:04:57.4]} 4.
Nc3 {[%clk 0:04:55]} 4... Nf6 {[%clk 0:04:56.5]} 5. Nf3 {[%clk 0:04:53.4]} 5...
Bd6 {[%clk 0:04:54.9]} 6. Bg5 {[%clk 0:04:50.7]} 6... c6 {[%clk 0:04:53.1]} 7.
e3 {[%clk 0:04:41]} 7... h6 {[%clk 0:04:51.3]} 8. Bh4 {[%clk 0:04:39.7]} 8...
Nbd7 {[%clk 0:04:49.3]} 9. Bd3 {[%clk 0:04:28.2]} 9... g5 {[%clk 0:04:34.7]} 10.
Bg3 {[%clk 0:04:26.3]} 10... Bxg3 {[%clk 0:04:32.4]} 11. hxg3 {[%clk 0:04:24.1]}
11... Qc7 {[%clk 0:04:26.2]} 12. g4 {[%clk 0:04:07]} 12... Nxg4 {[%clk
0:04:17.4]} 13. Nxg5 {[%clk 0:03:59.1]} 13... Nxe3 {[%clk 0:04:07.9]} 14. Qe2
{[%clk 0:03:47.3]} 14... O-O {[%clk 0:03:32.9]} 15. Rxh6 {[%clk 0:03:28.1]}
15... Nxg2+ {[%clk 0:03:17.1]} 16. Kf1 {[%clk 0:03:12.4]} 16... Nf4 {[%clk
0:02:54.9]} 17. Qg4 {[%clk 0:03:10.7]} 17... Nf6 {[%clk 0:02:43.7]} 18. Qh4
{[%clk 0:02:34.9]} 18... N4h5 {[%clk 0:02:12.8]} 19. Rxh5 {[%clk 0:02:14.6]}
19... Nxh5 {[%clk 0:02:07.5]} 20. Qxh5 {[%clk 0:02:12.9]} 20... f6 {[%clk
0:01:54.3]} 21. Bh7+ {[%clk 0:01:32.7]} 21... Kg7 {[%clk 0:01:45.6]} 22. Qg6+
{[%clk 0:01:30]} 22... Kh8 {[%clk 0:01:43.8]} 23. Bg8 {[%clk 0:00:48]} 23... Qg7
{[%clk 0:00:25.4]} 24. Qxg7+ {[%clk 0:00:15.3]} 24... Kxg7 {[%clk 0:00:23.8]}
25. Be6 {[%clk 0:00:10.2]} 25... fxg5 {[%clk 0:00:21.5]} 26. Bxc8 {[%clk
0:00:07.4]} 26... Raxc8 {[%clk 0:00:21.4]} 27. Ke2 {[%clk 0:00:05.9]} 27... Rh8
{[%clk 0:00:21.3]} 28. Rg1 {[%clk 0:00:03.1]} 28... Rce8+ {[%clk 0:00:21.2]} 29.
Kd3 {[%clk 0:00:01.9]} 29... Kg6 {[%clk 0:00:21.1]} 30. f4 {[%clk 0:00:00.7]}
30... Rhf8 {[%clk 0:00:21]} 0-1